bitfinex-derivatives/quotes_SOLF0:USTF0_20240818
["timestamp","ask_amount","ask_price","bid_price","bid_amount"]
[1724023794386,0.04395682,143.82,143.79,18.72545211]
[1724023794987,2.6947,143.89,143.81,18.68]
[1724023795286,2.6947,143.89,143.83,18.68]
[1724023795493,4.58,143.88,143.83,18.68]
[1724023795685,3.4749,143.87,143.84,3.4755]
[1724023795885,4.58,143.86,143.81,18.68]
[1724023796085,0.05177126,143.85,143.82,0.04517078]
[1724023797088,3.52717126,143.85,143.82,0.04517078]
[1724023797288,4.58,143.84,143.82,0.04517078]
[1724023797693,3.4758,143.83,143.82,0.04517078]
[1724023800590,23.26,143.84,143.75,18.68]
[1724023800786,1.3041,143.83,143.75,18.68]
[1724023800989,21.3017,143.83,143.74,3.4778]
[1724023801194,18.68,143.81,143.73,1.2982]
[1724023801392,4.58,143.8,143.73,1.2982]
[1724023801598,3.4772,143.77,143.73,4.7762]
[1724023801794,4.58,143.76,143.75,0.04484552]
[1724023802297,4.58,143.76,143.69,18.68]
[1724023802785,3.4784,143.73,143.69,3.4791]
[1724023802986,4.58,143.72,143.69,3.4791]
[1724023803491,4.58,143.71,143.69,3.5326461]
[1724023803689,0.04611645,143.72,143.69,3.5326461]
[1724023803891,4.58,143.71,143.69,3.5326461]
[1724023804289,0.04611645,143.72,143.69,18.7335461]
[1724023804497,4.62611645,143.72,143.71,18.68]
[1724023804997,4.62611645,143.72,143.69,18.7335461]
[1724023805294,4.62611645,143.72,143.69,22.2126461]
[1724023805497,4.62611645,143.72,143.69,18.7335461]
[1724023805891,8.10471645,143.72,143.69,0.0535461]
[1724023806489,0.04611645,143.72,143.69,0.0535461]
[1724023806886,4.58,143.71,143.69,0.0535461]
[1724023807801,8.0587,143.71,143.69,0.0535461]
[1724023807997,4.58,143.71,143.69,0.0535461]
[1724023808297,4.58,143.71,143.65,18.68]
[1724023808486,5.942,143.71,143.65,18.68]
[1724023808886,3.4793,143.69,143.65,3.48]
[1724023809091,1.362,143.71,143.63,18.68]
[1724023809295,3.4794,143.68,143.64,3.4802]
[1724023809488,3.53000362,143.68,143.64,3.4802]
[1724023810701,3.53000362,143.68,143.65,3.4801]
[1724023810898,4.58,143.67,143.65,3.4801]
[1724023812097,4.58,143.67,143.64,3.4803]
[1724023812492,4.62,143.66,143.64,3.4803]
[1724023813602,3.53010362,143.68,143.64,3.4804]
[1724023813796,4.62,143.65,143.64,3.4804]
[1724023815201,3.53010362,143.68,143.64,3.4804]
[1724023815402,4.62,143.65,143.64,3.4804]
[1724023815796,4.62,143.65,143.63,18.68]
[1724023816897,4.62,143.65,143.64,3.4804]
[1724023817201,4.62,143.65,143.56,11.5445]
[1724023817396,4.62,143.65,143.61,18.68]
[1724023818404,4.62,143.65,143.62,3.4807]
[1724023818806,4.62,143.65,143.63,3.4806]
[1724023819399,8.1001,143.65,143.61,18.68]
[1724023819601,4.62,143.65,143.58,18.68]
[1724023819810,0.04698632,143.63,143.58,18.68]
[1724023820309,0.04698632,143.63,143.6,3.4812]
[1724023820911,0.04698632,143.63,143.61,3.481]
[1724023821706,0.04698632,143.63,143.56,18.68]
[1724023822209,3.4809,143.62,143.59,3.4815]
[1724023822509,3.52886796,143.62,143.55,18.68]
[1724023822711,3.4809,143.62,143.55,18.68]
[1724023822911,0.05263086,143.6,143.55,18.68]
[1724023823113,4.62,143.59,143.55,18.68]
[1724023823509,4.62,143.59,143.58,3.4817]
[1724023824304,4.62,143.59,143.57,3.4819]
[1724023824507,6.01702681,143.59,143.57,3.4819]
[1724023824911,24.69702681,143.59,143.54,3.4828]
[1724023825116,4.62,143.58,143.54,3.4828]
[1724023825318,6.0205454,143.58,143.5,18.68]
[1724023825514,1.4005454,143.58,143.5,18.68]
[1724023825817,4.62,143.57,143.51,18.68]
[1724023826010,4.62,143.56,143.53,18.68]
[1724023826417,0.04903938,143.55,143.54,3.4828]
[1724023828418,4.62,143.57,143.54,18.72999903]
[1724023828719,4.62,143.6,143.55,1.252]
[1724023829017,4.62,143.6,143.59,3.4816]
[1724023829516,0.04447591,143.61,143.48,3.39776053]
[1724023829712,27.82,143.63,143.53,18.68]
[1724023829713,4.64,143.6,143.53,18.68]
[1724023830117,18.68,143.62,143.53,18.68]
[1724023830317,4.64,143.61,143.53,18.68]
[1724023830620,4.64,143.61,143.49,1.252]
[1724023830621,0.04461996,143.58,143.56,3.4822]
[1724023830922,4.64,143.57,143.52,18.68]
[1724023831317,0.05298047,143.56,143.54,18.68]
[1724023831517,0.04665231,143.56,143.54,18.68]
[1724023831922,0.04665231,143.56,143.55,3.4826]
[1724023834530,4.64,143.61,143.55,18.68]
[1724023834725,27.82,143.63,143.57,18.68]
[1724023834922,4.64,143.62,143.57,18.68]
[1724023835125,4.64,143.62,143.59,3.4814]
[1724023835315,4.64,143.62,143.57,18.68]
[1724023835719,0.05282653,143.61,143.59,3.4815]
[1724023836119,0.05282653,143.61,143.6,3.4813]
[1724023838123,0.05282653,143.61,143.58,0.04995116]
[1724023838619,4.64,143.6,143.59,3.4815]
[1724023839524,4.64,143.6,143.58,3.53165116]
[1724023840927,0.05282653,143.61,143.58,3.53165116]
[1724023841121,4.69282653,143.61,143.58,3.53165116]
[1724023841326,8.17402653,143.61,143.58,3.53165116]
[1724023843029,4.69282653,143.61,143.59,3.4815]
[1724023843323,0.05282653,143.61,143.59,3.4815]
[1724023843529,4.69282653,143.61,143.59,3.4815]
[1724023844522,0.05282653,143.61,143.58,0.04995116]
[1724023845130,0.05282653,143.61,143.6,3.4813]
[1724023849433,0.05282653,143.61,143.6,22.1613]
[1724023849731,1.3299,143.65,143.63,3.4804]
[1724023850523,1.3299,143.65,143.62,3.4808]
[1724023850721,1.37863595,143.65,143.63,0.04929732]
[1724023850924,4.85883595,143.65,143.63,0.04929732]
[1724023851132,1.37863595,143.65,143.62,3.4807]
[1724023851335,1.37863595,143.65,143.59,18.68]
[1724023851629,1.37863595,143.65,143.63,0.05216147]
[1724023851827,0.04873595,143.65,143.64,3.4804]
[1724023852027,4.64,143.69,143.63,0.05216147]
[1724023852226,4.64,143.69,143.68,3.4794]
[1724023852427,2.5497,143.7,143.68,3.4794]
[1724023852824,1.2655,143.74,143.69,3.4792]
[1724023852825,19.9455,143.74,143.69,3.4792]
[1724023853035,4.64,143.73,143.66,18.68]
[1724023853229,4.6849804,143.73,143.7,18.72465928]
[1724023853425,4.6849804,143.73,143.65,19.9457]
[1724023853426,1.3266,143.77,143.72,18.68]
[1724023853935,0.04668535,143.76,143.74,3.4778]
[1724023854627,0.04668535,143.76,143.73,3.52548112]
[1724023855224,1.2659,143.82,143.74,18.68]
[1724023855835,1.2659,143.82,143.75,3.4775]
[1724023856034,1.2659,143.82,143.74,18.68]
[1724023856435,0.04461319,143.79,143.77,0.04449309]
[1724023857931,23.32,143.78,143.68,18.68]
[1724023858834,3.4778,143.75,143.7,3.4788]
[1724023859034,0.04943729,143.74,143.72,0.05197045]
[1724023860227,0.04943729,143.74,143.73,3.4782]
[1724023860433,1.2816,143.79,143.72,18.73197045]
[1724023860634,4.7585,143.79,143.74,3.4778]
[1724023861036,1.2816,143.79,143.72,18.68]
[1724023861341,1.2816,143.79,143.75,3.4776]
[1724023861640,0.0444583,143.77,143.75,3.4776]
[1724023862135,0.0444583,143.77,143.74,3.52876686]
[1724023862338,0.0444583,143.77,143.74,0.05086686]
[1724023862745,18.68,143.78,143.7,3.4789]
[1724023863231,3.4779,143.75,143.7,3.4789]
[1724023863437,4.64,143.76,143.71,18.68]
[1724023863835,0.05321465,143.75,143.74,3.4777]
[1724023864034,0.04605719,143.76,143.73,0.0507766]
[1724023864340,0.04605719,143.76,143.73,18.7307766]
[1724023864549,0.04605719,143.76,143.74,3.4778]
[1724023864948,0.04605719,143.76,143.75,3.4777]
[1724023867143,0.04605719,143.76,143.74,3.4779]
[1724023868144,0.04605719,143.76,143.75,3.4777]
[1724023869145,0.04605719,143.76,143.74,3.4779]
[1724023869944,0.04605719,143.76,143.73,0.0507766]
[1724023870344,0.04605719,143.76,143.74,3.478]
[1724023870548,0.04605719,143.76,143.73,0.0507766]
[1724023870941,3.52355719,143.76,143.73,0.0507766]
[1724023871141,0.04605719,143.76,143.73,0.0507766]
[1724023872246,3.4779,143.75,143.73,0.0507766]
[1724023873444,0.04605719,143.76,143.73,0.0507766]
[1724023873945,3.52365719,143.76,143.73,0.0507766]
[1724023875753,3.4778,143.75,143.73,0.0507766]
[1724023875945,0.04605719,143.76,143.73,0.0507766]
[1724023876346,3.478,143.74,143.73,0.0507766]
[1724023877047,20.0286,143.75,143.64,18.68]
[1724023877254,18.68,143.73,143.64,18.68]
[1724023877645,3.4791,143.7,143.66,3.4797]
[1724023877847,18.68,143.73,143.66,3.4797]
[1724023878042,0.04791332,143.69,143.67,0.04447595]
[1724023879051,3.4794,143.68,143.67,0.04447595]
[1724023880355,3.4799,143.66,143.63,1.3568]
[1724023880758,23.36,143.69,143.61,3.4809]
[1724023881056,3.4803,143.65,143.61,3.4809]
[1724023881457,3.48,143.66,143.6,18.68]
[1724023881662,0.04958319,143.64,143.62,0.05189871]
[1724023882959,0.04958319,143.64,143.62,18.73189871]
[1724023884062,0.04958319,143.64,143.63,3.4806]
[1724023885354,0.04958319,143.64,143.62,18.73189871]
[1724023885355,0.04958319,143.64,143.62,22.21269871]
[1724023886461,0.04958319,143.64,143.62,0.05189871]
[1724023887261,3.52998319,143.64,143.62,0.05189871]
[1724023887563,0.04958319,143.64,143.62,0.05189871]
[1724023888261,3.53008319,143.64,143.62,0.05189871]
[1724023889669,0.04958319,143.64,143.62,0.05189871]
[1724023892259,3.52998319,143.64,143.62,0.05189871]
[1724023893477,3.52998319,143.64,143.55,7.1967]
[1724023893478,4.68,143.63,143.46,6.9695]
[1724023893662,18.68,143.61,143.51,18.68]
[1724023893862,4.68,143.6,143.51,18.68]
[1724023894064,4.68,143.6,143.52,3.4831]
[1724023894361,18.68,143.61,143.51,18.68]
[1724023894362,4.68,143.59,143.51,18.68]
[1724023894568,0.05145026,143.57,143.51,18.68]
[1724023895271,3.53365026,143.57,143.53,3.4829]
[1724023897265,0.05145026,143.57,143.51,18.68]
[1724023897874,3.4823,143.56,143.53,3.483]
[1724023898273,8.1623,143.56,143.53,3.483]
[1724023898473,4.68,143.56,143.51,18.68]
[1724023899376,4.68,143.56,143.53,3.483]
[1724023899778,0.05145026,143.57,143.53,3.483]
[1724023899973,4.68,143.56,143.53,3.483]
[1724023902374,8.1623,143.56,143.53,3.483]
[1724023902973,4.68,143.56,143.51,18.68]
[1724023903476,4.65145026,143.57,143.53,18.68]
[1724023903676,4.65145026,143.57,143.54,1.3169]
[1724023903869,4.65145026,143.57,143.55,3.4824]
[1724023904074,0.05145026,143.57,143.55,3.4824]
[1724023904471,0.05145026,143.57,143.54,1.3169]
[1724023905872,3.53365026,143.57,143.54,1.3169]
[1724023906672,0.05145026,143.57,143.54,4.7997]
[1724023907071,0.05145026,143.57,143.48,2.5976]
[1724023907274,3.4829,143.54,143.5,3.4837]
[1724023907577,3.53617796,143.54,143.5,3.4837]
[1724023908583,3.4831,143.53,143.5,3.4837]
[1724023908780,3.4831,143.53,143.49,3.4839]
[1724023908980,0.05327796,143.54,143.48,22.6392]
[1724023909182,0.05327796,143.54,143.48,3.9592]
[1724023909384,0.05327796,143.54,143.5,18.68]
[1724023909580,3.4831,143.53,143.5,18.68]
[1724023910286,3.4831,143.53,143.48,22.6392]
[1724023910584,3.4831,143.53,143.49,3.4839]
[1724023911376,0.05327796,143.54,143.41,4.6]
[1724023911581,0.05327796,143.54,143.46,18.68]
[1724023911776,1.3484,143.59,143.48,18.68]
[1724023912086,0.05089177,143.55,143.48,18.68]
[1724023912385,3.4833,143.52,143.49,3.4839]
[1724023912683,4.6,143.53,143.46,18.68]
[1724023912980,3.4839,143.5,143.46,22.1647]
[1724023913187,3.4839,143.5,143.46,3.4847]
[1724023913484,4.6,143.51,143.45,20.0286]
[1724023913681,3.4838,143.5,143.46,3.4846]
[1724023913881,0.0530377,143.49,143.46,3.4846]
[1724023914279,0.0530377,143.49,143.45,4.8335]
[1724023914280,3.5370377,143.49,143.45,4.8335]
[1724023914484,0.0530377,143.49,143.45,1.3486]
[1724023914777,0.0530377,143.49,143.43,18.68]
[1724023914992,0.0530377,143.49,143.25,283.49596643]
[1724023915183,0.0530377,143.49,143.44,18.68]
[1724023915382,5.9096,143.53,143.46,18.68]
[1724023915686,5.9096,143.53,143.44,3.4851]
[1724023915687,3.4843,143.48,143.44,22.1651]
[1724023915877,24.5896,143.53,143.45,3.485]
[1724023916078,0.04659125,143.51,143.45,3.485]
[1724023916484,0.04659125,143.51,143.44,18.68]
[1724023917490,4.6,143.5,143.46,18.68]
[1724023917883,0.04635897,143.49,143.46,22.1646]
[1724023918079,0.04635897,143.49,143.44,18.68]
[1724023918282,4.6,143.5,143.44,18.68]
[1724023918488,0.05138784,143.48,143.45,3.4848]
[1724023919187,3.4847,143.47,143.42,3.4856]
[1724023919385,0.05138784,143.48,143.43,18.68]
[1724023919985,3.53578784,143.48,143.44,3.4851]
[1724023920291,0.04400962,143.47,143.43,18.68]
[1724023920693,0.04400962,143.47,143.45,3.4848]
[1724023921291,0.04400962,143.47,143.44,3.4851]
[1724023921587,0.04400962,143.47,143.43,18.68]
[1724023921786,0.04400962,143.47,143.44,3.4851]
[1724023921987,0.04400962,143.47,143.43,18.68]
[1724023922288,0.04400962,143.47,143.4,1.312]
[1724023922491,7.49,143.45,143.39,1.2757]
[1724023922688,4.6,143.44,143.39,1.2757]
[1724023922893,4.6,143.44,143.38,7.49]
[1724023923087,7.49,143.42,143.33,1.3541]
[1724023923288,2.6319,143.48,143.41,7.49]
[1724023923494,4.6,143.47,143.41,7.49]
[1724023923695,4.65193951,143.46,143.41,7.49]
[1724023924292,7.49,143.43,143.33,1.3541]
[1724023924486,18.75,143.43,143.33,20.1041]
[1724023924692,0.05017907,143.39,143.35,18.75]
[1724023924890,6.13294181,143.48,143.35,18.75]
[1724023924891,18.75,143.47,143.38,18.75]
[1724023925392,4.6,143.46,143.39,3.4863]
[1724023925894,18.75,143.45,143.36,18.75]
[1724023926298,18.75,143.45,143.41,0.04586325]
[1724023926299,3.4859,143.42,143.41,0.04586325]
[1724023926799,3.4867,143.38,143.33,1.3541]
[1724023926989,3.4867,143.38,143.34,3.4875]
[1724023927799,3.53293534,143.37,143.33,4.8419]
[1724023927988,4.62,143.36,143.19,34.8226]
[1724023928294,3.4878,143.34,143.27,18.75]
[1724023928501,0.04404898,143.31,143.27,18.75]
[1724023928900,0.04404898,143.31,143.28,3.4891]
[1724023929099,0.04404898,143.31,143.27,18.75]
[1724023930102,0.04404898,143.31,143.3,3.4886]
[1724023930400,4.62,143.37,143.3,18.75]
[1724023930601,3.4877,143.34,143.3,22.2386]
[1724023930995,23.37,143.37,143.28,20.0677]
[1724023931196,18.75,143.35,143.26,21.3285]
[1724023931507,18.75,143.33,143.24,3.50341469]
[1724023931804,23.37,143.33,143.24,18.75]
[1724023932006,3.4882,143.32,143.27,3.4892]
[1724023932307,23.37,143.33,143.27,3.4892]
[1724023932505,3.53974562,143.31,143.27,3.4892]
[1724023932801,0.05134562,143.31,143.24,18.75]
[1724023933602,0.05134562,143.31,143.28,3.4889]
[1724023933996,0.05134562,143.31,143.27,3.4893]
[1724023934195,18.80134562,143.31,143.21,18.75]
[1724023934400,18.75,143.31,143.21,18.75]
[1724023934602,0.04810336,143.27,143.25,3.4897]
[1724023936701,0.04810336,143.27,143.26,3.4896]
[1724023937598,63.50665085,143.63,143.26,1.3673]
[1724023937599,18.75,143.37,143.26,1.3673]
[1724023937901,4.76,143.35,143.29,18.75]
[1724023938908,0.05014736,143.33,143.31,0.04835757]
[1724023939111,0.05014736,143.33,143.32,3.488]
[1724023939616,0.05014736,143.33,143.31,0.04835757]
[1724023939912,0.05014736,143.33,143.31,18.79835757]
[1724023940711,0.05014736,143.33,143.32,1.2536]
[1724023940909,4.76,143.4,143.32,1.2536]
[1724023941109,4.76,143.4,143.34,18.75]
[1724023941513,71.32482022,143.42,143.39,3.4864]
[1724023941710,4.76,143.43,143.34,18.75]
[1724023942115,0.0469638,143.4,143.38,3.4867]
[1724023942615,0.0469638,143.4,143.39,3.4864]
[1724023942812,0.0469638,143.4,143.37,0.05096005]
[1724023943116,3.5332638,143.4,143.37,0.05096005]
[1724023943318,0.0469638,143.4,143.37,0.05096005]
[1724023943610,18.75,143.39,143.37,0.05096005]
[1724023943812,20.0506,143.39,143.29,4.76]
[1724023944010,6.0993,143.38,143.29,4.76]
[1724023944209,9.5861,143.38,143.34,3.4876]
[1724023945019,0.04887256,143.37,143.36,3.4871]
[1724023945319,0.04542243,143.38,143.35,0.04562779]
[1724023945505,0.04542243,143.38,143.36,3.487]
[1724023945703,0.04542243,143.38,143.35,0.04562779]
[1724023947324,0.04542243,143.38,143.36,3.487]
[1724023949820,0.04542243,143.38,143.37,3.4869]
[1724023950925,4.7888,143.45,143.36,24.7184]
[1724023951114,1.3037,143.45,143.36,24.7184]
[1724023951319,1.3037,143.45,143.39,3.4863]
[1724023951522,3.4856,143.43,143.36,24.7184]
[1724023951821,3.4856,143.43,143.38,0.05349569]
[1724023951822,0.0518291,143.41,143.38,0.05349569]
[1724023952817,0.0518291,143.41,143.4,3.4862]
[1724023953021,0.0518291,143.41,143.38,0.05349569]
[1724023954424,0.0518291,143.41,143.38,3.53999569]
[1724023955623,3.5378291,143.41,143.38,3.53999569]
[1724023955917,0.0518291,143.41,143.39,3.4864]
[1724023956518,0.0518291,143.41,143.4,3.4862]
[1724023959720,0.0518291,143.41,143.38,3.54009569]
[1724023959913,0.0518291,143.41,143.38,0.05349569]
[1724023961821,0.0518291,143.41,143.39,3.4862]
[1724023962628,0.0518291,143.41,143.38,3.54009569]
[1724023963415,0.0518291,143.41,143.39,3.4864]
[1724023963820,0.0518291,143.41,143.38,0.05349569]
[1724023964021,3.5379291,143.41,143.38,0.05349569]
[1724023964227,0.0518291,143.41,143.38,0.05349569]
[1724023965330,3.4864,143.4,143.38,0.05349569]
[1724023967029,3.5379291,143.41,143.38,0.05349569]
[1724023967222,0.0518291,143.41,143.38,0.05349569]
[1724023967730,0.0518291,143.41,143.38,3.54009569]
[1724023968928,3.5378291,143.41,143.38,0.05349569]
[1724023969732,3.4862,143.4,143.38,0.05349569]
[1724023970324,0.0518291,143.41,143.38,0.05349569]
[1724023970325,3.4864,143.39,143.38,0.05349569]
[1724023970725,0.0518291,143.41,143.38,0.05349569]
[1724023971130,3.4863,143.4,143.38,0.05349569]
[1724023971826,0.0518291,143.41,143.38,0.05349569]
[1724023972224,18.8018291,143.41,143.38,0.05349569]
[1724023973125,3.4864,143.39,143.38,0.05349569]
[1724023974135,18.75,143.39,143.32,3.488]
[1724023974431,4.72,143.38,143.32,3.488]
[1724023974633,3.4876,143.35,143.32,3.488]
[1724023975131,18.75,143.37,143.3,4.8147]
[1724023975435,18.75,143.33,143.25,3.9159]
[1724023975732,4.72,143.32,143.25,3.9159]
[1724023975935,4.72,143.32,143.25,2.6748]
[1724023976533,3.54181728,143.3,143.25,2.6748]
[1724023977429,0.05301728,143.3,143.27,3.4892]
[1724023977628,0.05301728,143.3,143.25,2.6748]
[1724023978029,0.05301728,143.3,143.29,3.4889]
[1724023978834,4.72,143.35,143.31,3.4883]
[1724023979133,18.75,143.38,143.28,18.75]
[1724023979335,4.72,143.37,143.31,3.4882]
[1724023979735,3.4874,143.35,143.28,18.75]
[1724023979924,3.53494233,143.35,143.3,0.04444438]
[1724023980129,0.04754233,143.35,143.3,0.04444438]
[1724023981537,18.75,143.34,143.3,0.04444438]
[1724023981732,21.4194,143.34,143.3,0.04444438]
[1724023982235,18.75,143.32,143.3,0.04444438]
[1724023982432,18.75,143.32,143.23,18.75]
[1724023982635,3.4891,143.29,143.25,3.4897]
[1724023982831,4.72,143.31,143.25,3.4897]
[1724023983538,0.0468894,143.29,143.25,3.4897]
[1724023983833,0.0468894,143.29,143.21,2.6193]
[1724023983834,0.0468894,143.29,143.21,21.3693]
[1724023984236,3.4895,143.27,143.21,21.3693]
[1724023984532,0.05277522,143.25,143.21,2.6193]
[1724023985131,0.05277522,143.25,143.23,3.4902]
[1724023985329,0.05277522,143.25,143.21,2.6193]
[1724023986436,0.05277522,143.25,143.24,3.4901]
[1724023990744,3.4885,143.31,143.27,3.4892]
[1724023990941,4.72,143.32,143.22,23.44]
[1724023991137,4.72,143.33,143.25,23.44]
[1724023991639,0.05102286,143.3,143.28,0.04512081]
[1724023992043,0.05102286,143.3,143.28,3.53402081]
[1724023992236,0.05102286,143.3,143.28,0.04512081]
[1724023992839,23.49102286,143.3,143.21,2.6193]
[1724023993036,23.44,143.3,143.21,2.6193]
[1724023993240,23.44,143.3,143.23,3.4902]
[1724023993241,3.4893,143.28,143.23,3.4902]
[1724023993842,3.4893,143.28,143.24,3.4901]
[1724023994043,0.04808789,143.27,143.24,3.4901]
[1724023994245,0.04808789,143.27,143.21,2.6193]
[1724023994445,0.04808789,143.27,143.25,3.4898]
[1724023995038,0.04808789,143.27,143.24,3.4901]
[1724023995440,0.04808789,143.27,143.21,2.6193]
[1724023997655,0.04808789,143.27,143.25,3.4898]
[1724023997844,0.04808789,143.27,143.21,2.6193]
[1724023998052,0.04808789,143.27,143.25,3.4897]
[1724023998643,0.04808789,143.27,143.21,26.0593]
[1724023999348,0.04808789,143.27,143.24,3.49]
[1724024001150,3.53748789,143.27,143.24,3.49]
[1724024001653,0.04808789,143.27,143.24,3.49]
[1724024001952,0.04808789,143.27,143.12,6.9857]
[1724024002150,4.64,143.3,143.17,23.44]
[1724024002151,0.0520896,143.22,143.17,23.44]
[1724024002346,0.0483959,143.21,143.17,23.44]
[1724024002553,28.29473791,143.27,143.17,23.44]
[1724024002853,0.04855122,143.23,143.17,23.44]
[1724024003353,0.04855122,143.23,143.16,1.3065]
[1724024003852,3.491,143.21,143.17,3.4916]
[1724024005051,0.04855122,143.23,143.16,20.0765]
[1724024005355,0.04959864,143.21,143.16,20.0765]
[1724024005852,0.04959864,143.21,143.18,18.77]
[1724024006052,9.4705,143.28,143.2,18.82114606]
[1724024006247,9.4705,143.28,143.2,18.77]
[1724024006653,5.9811,143.28,143.2,18.77]
[1724024006854,3.4894,143.27,143.23,3.4902]
[1724024007053,5.9811,143.28,143.24,0.0486428]
[1724024007250,0.04661227,143.26,143.24,0.0486428]
[1724024009744,0.04661227,143.26,143.25,3.4898]
[1724024010963,0.04661227,143.26,143.24,3.5386428]
[1724024011261,0.04661227,143.26,143.24,0.0486428]
[1724024011462,0.04661227,143.26,143.25,3.4898]
[1724024014960,9.476,143.31,143.27,3.4892]
[1724024015163,5.9875,143.31,143.24,18.77]
[1724024015360,3.4887,143.3,143.24,18.77]
[1724024015560,3.4887,143.3,143.27,3.4893]
[1724024015757,5.9875,143.31,143.27,3.4893]
[1724024015967,0.04408495,143.3,143.28,0.05204951]
[1724024017367,0.04408495,143.3,143.28,3.54114951]
[1724024017667,0.04408495,143.3,143.28,0.05204951]
[1724024017867,0.04408495,143.3,143.29,3.4889]
[1724024019568,0.04408495,143.3,143.28,3.54104951]
[1724024019765,0.04408495,143.3,143.28,0.05204951]
[1724024019969,0.04408495,143.3,143.29,3.4889]
[1724024020357,4.64,143.36,143.28,0.05204951]
[1724024020563,3.4876,143.35,143.31,3.4882]
[1724024021264,3.4876,143.35,143.32,3.4881]
[1724024021464,3.53428114,143.35,143.32,3.53324668]
[1724024021769,0.04668114,143.35,143.32,3.53324668]
[1724024021972,0.04668114,143.35,143.32,0.04514668]
[1724024022169,3.53428114,143.35,143.32,0.04514668]
[1724024024074,0.04668114,143.35,143.32,3.53324668]
[1724024024269,0.04668114,143.35,143.32,0.04514668]
[1724024024775,0.04668114,143.35,143.33,3.4878]
[1724024025578,0.04668114,143.35,143.34,3.4877]
[1724024025874,2.6283,143.4,143.32,4.62514668]
[1724024026073,6.1146,143.4,143.36,3.487]
[1724024026374,2.6283,143.4,143.33,18.77]
[1724024026675,3.4866,143.39,143.35,3.4873]
[1724024026877,0.04722801,143.38,143.35,0.04653339]
[1724024027078,0.04722801,143.38,143.35,3.53383339]
[1724024027873,0.04722801,143.38,143.35,0.04653339]
[1724024028371,0.04722801,143.38,143.36,3.487]
[1724024029274,0.04722801,143.38,143.37,3.4869]
[1724024030675,1.3548,143.44,143.39,3.4863]
[1724024030871,1.3548,143.44,143.36,9.36819989]
[1724024031077,4.58,143.45,143.39,18.77]
[1724024031272,3.4856,143.43,143.39,18.77]
[1724024031473,65.08487863,143.46,143.37,23.35]
[1724024031676,0.0481051,143.42,143.4,0.04811225]
[1724024031876,3.5338051,143.42,143.4,0.04811225]
[1724024032079,0.0481051,143.42,143.4,0.04811225]
[1724024032481,3.486,143.41,143.4,0.04811225]
[1724024032880,3.5340051,143.42,143.4,0.04811225]
[1724024033077,0.0481051,143.42,143.4,0.04811225]
[1724024033383,3.486,143.41,143.4,0.04811225]
[1724024033589,18.77,143.41,143.32,5.9309]
[1724024033884,21.4484,143.41,143.34,3.4875]
[1724024034193,3.4871,143.37,143.34,3.4875]
[1724024034681,3.53964384,143.37,143.34,3.53234374]
[1724024035077,3.4872,143.36,143.34,0.04484374]
[1724024035477,0.05254384,143.37,143.34,0.04484374]
[1724024036283,3.4872,143.36,143.34,0.04484374]
[1724024036686,0.05254384,143.37,143.34,0.04484374]
[1724024036880,0.05254384,143.37,143.34,3.53234374]
[1724024037184,0.05254384,143.37,143.34,0.04484374]
[1724024038279,0.05254384,143.37,143.35,3.4873]
[1724024038484,0.05254384,143.37,143.34,0.04484374]
[1724024038683,0.05254384,143.37,143.36,3.4872]
[1724024038985,3.486,143.41,143.35,18.77]
[1724024039184,4.58,143.43,143.35,18.77]
[1724024039380,23.35,143.43,143.36,3.4871]
[1724024039782,3.4863,143.4,143.36,3.4871]
[1724024039975,3.4863,143.4,143.38,0.05313949]
[1724024041885,3.4864,143.39,143.38,0.05313949]
[1724024042088,0.04976089,143.41,143.38,0.05313949]
[1724024042291,3.4863,143.4,143.38,0.05313949]
[1724024042987,0.04976089,143.41,143.38,0.05313949]